[Event "Charlotte Summer IM B 2022"]
[Site "Charlotte"]
[Date "2022.07.28"]
[Round "9.5"]
[White "Eckert, Doug"]
[Black "Homa, Seth"]
[Result "1/2-1/2"]
[ECO "D11"]
[WhiteElo "2177"]
[BlackElo "2237"]
[Annotator "TA"]
[PlyCount "59"]
[EventDate "2022.07.24"]
[EventType "tourn"]
[EventCountry "USA"]
[SourceTitle "playchess.com"]
[Source "ChessBase"]
[SourceQuality "1"]
[TimeControl "5400+30"]

{[%evp 9,59,8,18,0,0,-5,-3,-13,0,0,0,10,0,0,25,16,20,0,0,-33,12,8,10,16,0,12,3,10,8,12,18,0,85,89,72,85,72,69,117,143,129,124,285,34,36,37,43,26,15,15,14,0]} 1. d4 {[%emt 0:02:22]} d5 {[%emt 0:00:13]} 2. c4 {[%emt 0:00:11]} c6 {[%emt 0:00:08]} 3. Nf3 {[%emt 0:00:06]} Nf6 {[%emt 0:00:13]} 4. g3 {[%emt 0:00:03]} Bg4 {[%emt 0:00:11]} 5. Ne5 {[%emt 0:00:10]} Bf5 {[%emt 0:00:11]} 6. Bg2 {[%emt 0:03:22] D11: Slav Defence: 3 Nf3 sidelines and 3...Nf6 4 e3 Bg4.} e6 {[%emt 0:00:17]} 7. Qb3 {[%emt 0:02:15]} Qb6 {[%emt 0:00:33]} 8. c5 {[%emt 0:05:45] [#]} Qa6 $146 {[%emt 0:00:49]} ({Predecessor:} 8... Qxb3 9. axb3 Nbd7 10. f4 Nxe5 11. fxe5 Be4 12. Bf3 Bxf3 13. exf3 Nd7 14. Nc3 a6 {0-1 (55) Dragicevic,D (2349)-Lindgren,P (2380) Sweden 2018}) 9. Nc3 {[%emt 0:02:06] Active counter play!} b6 {[%emt 0:01:12]} 10. cxb6 {[%emt 0:01:08]} axb6 {[%emt 0:00:11]} 11. O-O {[%emt 0:00:07]} Be7 {[%emt 0:00:19]} 12. f3 {[%emt 0:08:03]} h6 {[%emt 0:07:09]} 13. g4 {[%emt 0:06:36]} Bh7 {[%emt 0:00:24]} 14. f4 {[%emt 0:02:01]} O-O {[%emt 0:05:40]} 15. g5 {[%emt 0:12:19]} hxg5 {[%emt 0:00:17]} 16. fxg5 {[%emt 0:00:04]} Nfd7 {[%emt 0:00:16] [#] aiming for ...Nxe5.} 17. g6 $36 {[%emt 0:00:52][%mdl 2048] White has some pressure.} Bxg6 {[%emt 0:00:07]} 18. Nxg6 {[%emt 0:00:17]} fxg6 {[%emt 0:00:08]} 19. Bf4 {[%emt 0:07:01]} g5 {[%emt 0:13:47]} 20. Bg3 {[%emt 0:01:12] This bishop pair is nice.} Bf6 {[%emt 0:00:17]} (20... Rxf1+ $1 $11 21. Rxf1 Qc4) 21. Rad1 {[%emt 0:02:25]} Qc4 {[%emt 0:00:56]} 22. Qxc4 {[%emt 0:07:58]} dxc4 {[%emt 0:00:11]} 23. a3 {[%emt 0:00:22]} Ra5 {[%emt 0:04:48]} (23... g4 $14) 24. Bh3 $16 {[%emt 0:01:32]} Re8 {[%emt 0:00:09]} 25. Ne4 {[%emt 0:00:55]} c5 $2 {[%emt 0:02:51] [#]} (25... Rd5 $16) 26. Nxf6+ $2 {[%emt 0:01:28]} (26. dxc5 $18 {[%cal Oc5c6] Hoping for c6!} c3 27. c6 (27. bxc3 bxc5 28. Rb1 g4 $18) (27. Nxc3 Bxc3 28. Bxb8 Nxb8 $16) 27... Nxc6 28. Rxd7 cxb2 29. Nxf6+ gxf6 30. Rd2) 26... Nxf6 $14 {[%emt 0:00:59]} 27. dxc5 {[%emt 0:08:15]} Rxc5 {[%emt 0:00:43]} 28. Bxb8 {[%emt 0:00:20]} Rxb8 {[%emt 0:00:19]} 29. Bxe6+ {[%emt 0:00:03]} Kh7 {[%emt 0:03:03]} 30. a4 {[%emt 0:02:20] Weighted Error Value: White=0.26 (precise) /Black=0.20 (precise)} 1/2-1/2